[Event "Singapore Open-A 2024"]
[Site "Singapore"]
[Date "2024.11.30"]
[Round "3.6"]
[White "Rozum, Ivan"]
[Black "Iniyan, Pa"]
[Result "1/2-1/2"]
[ECO "A13"]
[WhiteElo "2466"]
[BlackElo "2513"]
[Annotator "TA"]
[PlyCount "77"]
[EventDate "2024.11.29"]
[EventType "swiss"]
[EventCountry "SIN"]
[SourceTitle "playchess.com"]
[Source "ChessBase"]
[SourceQuality "1"]
[TimeControl "5400+30"]

{[%evp 10,77,15,12,6,17,21,20,16,6,26,43,35,38,43,27,68,64,59,52,47,55,55,71,87,82,77,53,53,66,55,44,50,45,154,18,10,17,9,8,8,8,8,7,12,24,18,0,0,0,0,3,4,0,0,0,0,0,0,0,0,0,8,0,8,8,8,8,8,0]} 1. Nf3 {[%emt 0:00:05]} d5 {[%emt 0:15:05]} 2. g3 {[%emt 0:00:14]} c5 {[%emt 0:00:36]} 3. Bg2 {[%emt 0:00:15]} Nf6 {[%emt 0:00:09]} 4. O-O {[%emt 0:00:10]} e6 {[%emt 0:00:20]} 5. c4 {[%emt 0:00:32]} d4 {[%emt 0:00:58]} 6. e3 {[%emt 0:00:12]} Nc6 {[%emt 0:00:09]} 7. d3 {[%emt 0:00:29]} Bd6 {[%emt 0:02:23]} 8. exd4 {[%emt 0:00:07]} cxd4 {[%emt 0:00:11]} 9. Na3 {[%emt 0:01:01]} h6 {[%emt 0:05:56]} 10. Nc2 {[%emt 0:03:36]} e5 {[%emt 0:02:24] [#]} 11. b4 $1 {[%emt 0:00:29]} O-O {[%emt 0:00:19][%cal Of8e8]} 12. Re1 {[%emt 0:01:57] And now c5 would win.} a6 {[%emt 0:15:34][%cal Of8e8]} 13. b5 $1 {[%emt 0:03:49]} axb5 {[%emt 0:01:35]} 14. cxb5 {[%emt 0:00:05]} Nb4 {[%emt 0:00:27]} 15. Nxb4 {[%emt 0:07:13]} Bxb4 {[%emt 0:00:24]} 16. Bd2 {[%emt 0:01:07]} (16. Rxe5 Bc3 17. Rb1 Rxa2 $11) 16... Bc3 {[%emt 0:00:07]} 17. Bxc3 {[%emt 0:01:13]} dxc3 {[%emt 0:00:09]} 18. Qb3 {[%emt 0:17:18]} ({Don't play} 18. Rxe5 Be6 $11) 18... Qxd3 {[%emt 0:13:49]} 19. Nxe5 {[%emt 0:11:11]} Qd2 {[%emt 0:00:46] [#] White must now prevent ...Be6.} 20. Nc4 {[%emt 0:03:46]} Qd4 {[%emt 0:00:41] ...Be6 would now be deadly.} 21. Rad1 {[%emt 0:01:11]} Qg4 {[%emt 0:00:07]} (21... Qc5 $14 22. Re5 (22. Qxc3 Be6 $11) 22... Qa7) 22. Nb6 {[%emt 0:08:50] White is more active.} (22. h3 $16 Qg5 23. Re5 (23. Qxc3 Qxb5 24. Re5 Qa4 $11)) 22... Be6 $11 {[%emt 0:01:14]} 23. Qxc3 {[%emt 0:08:57]} Rxa2 {[%emt 0:00:51]} 24. Nd5 {[%emt 0:02:22]} Nxd5 {[%emt 0:05:19]} 25. Bxd5 {[%emt 0:00:04]} Bxd5 {[%emt 0:00:07]} 26. Rxd5 {[%emt 0:00:05]} Re2 {[%emt 0:00:51]} 27. Rxe2 {[%emt 0:01:36]} Qxe2 {[%emt 0:00:07][%mdl 4096] Endgame. KQR-KQR} 28. Kg2 {[%emt 0:01:29] The position is equal.} Re8 {[%emt 0:01:27]} 29. Qf3 {[%emt 0:02:16]} Qc4 {[%emt 0:01:18]} 30. h4 {[%emt 0:03:06][%cal Bh2h4,Bh4h5][%mdl 32]} b6 {[%emt 0:02:42]} 31. h5 {[%emt 0:04:32]} f6 {[%emt 0:01:08]} 32. Qf5 {[%emt 0:01:30]} Qe4+ {[%emt 0:00:57]} 33. Qxe4 {[%emt 0:00:54]} Rxe4 {[%emt 0:00:06] KR-KR} 34. Rd6 {[%emt 0:01:50]} Re5 {[%emt 0:00:10][%csl LRb5,LRh5]} 35. Rxb6 {[%emt 0:00:03]} Rxh5 {[%emt 0:00:08]} 36. Rb7 {[%emt 0:00:18]} Kh7 {[%emt 0:00:14]} 37. Kf3 {[%emt 0:00:33] White wants to play Ke4.} Re5 {[%emt 0:00:41]} 38. b6 {[%emt 0:00:59] Strongly threatening Rc7.} Re6 {[%emt 0:01:35]} 39. Rb8 {[%emt 0:00:40] Weighted Error Value: White=0.09 (flawless) /Black=0.08 (flawless) .  Mistake:       	White=1     	Black=1      Inaccurate:     	---       	Black=1      OK:         	White=17    	Black=17     Best:        	White=1     	Black=2      Strong:       	White=1     	---} 1/2-1/2

[Event "Singapore Open-A 2024"]
[Site "Singapore"]
[Date "2024.11.30"]
[Round "3.7"]
[White "Eljanov, Pavel"]
[Black "Andyka, Pitra"]
[Result "1-0"]
[ECO "E44"]
[WhiteElo "2672"]
[BlackElo "2088"]
[Annotator "TA"]
[PlyCount "65"]
[EventDate "2024.11.29"]
[EventType "swiss"]
[EventCountry "SIN"]
[SourceTitle "playchess.com"]
[Source "ChessBase"]
[SourceQuality "1"]
[TimeControl "5400+30"]

{[%evp 13,65,18,22,18,21,1,7,7,24,0,84,62,47,72,104,106,95,78,64,58,112,110,185,189,241,227,232,223,458,435,374,363,498,479,472,470,2076,2070,5243,5202,5215,5010,29983,29984,29984,29966,12833,10483,5585,5522,5522,5514,29985,29986]} 1. d4 {[%emt 0:00:03]} Nf6 {[%emt 0:03:02][%cal Bg8f6,Bf6e4,Be4d2][%mdl 32]} 2. c4 {[%emt 0:00:06]} e6 {[%emt 0:00:53]} 3. Nc3 {[%emt 0:00:33]} Bb4 {[%emt 0:01:59]} 4. e3 {[%emt 0:00:22]} b6 {[%emt 0:01:32]} 5. Nge2 {[%emt 0:00:17]} Ne4 {[%emt 0:00:49]} 6. Bd2 {[%emt 0:00:18]} Nxd2 {[%emt 0:00:26]} 7. Qxd2 {[%emt 0:00:05]} Bb7 {[%emt 0:00:20]} 8. a3 {[%emt 0:02:16]} Be7 {[%emt 0:00:15]} 9. Nf4 {[%emt 0:00:23]} O-O {[%emt 0:01:08]} 10. h4 {[%emt 0:05:11] The position is equal.} d6 {[%emt 0:01:50][%cal Oc7c5]} 11. Qc2 {[%emt 0:05:34]} c5 {[%emt 0:05:33]} (11... h6 $11) 12. Bd3 $1 $16 {[%emt 0:02:00]} h6 {[%emt 0:00:23]} 13. d5 {[%emt 0:00:48]} exd5 {[%emt 0:06:57]} 14. Nfxd5 {[%emt 0:01:23]} (14. Ncxd5 $6 Bxh4 15. O-O-O Nd7 $14) 14... Nd7 {[%emt 0:04:06] Black is weak on the light squares} 15. Be4 {[%emt 0:05:49] White is much more active.} Rb8 {[%emt 0:02:37]} 16. O-O-O {[%emt 0:06:31] Strongly threatening g4.} Ne5 {[%emt 0:00:21] White stays focused until the end.} (16... Nf6 $1 $14) 17. Qe2 $1 $36 {[%emt 0:02:28][%mdl 2048] Black must now prevent g4. White is in control.} Ba6 {[%emt 0:09:45] [#]} (17... Bc8 $16) 18. Nb5 $1 $18 {[%emt 0:02:06] Excellent horsemanship.} Re8 {[%emt 0:05:03]} (18... Bxb5 {was called for.} 19. cxb5 Re8) 19. f4 {[%emt 0:01:21]} ({And not} 19. Nxa7 Bxc4 (19... Nxc4 $2 20. Nc6 $18) 20. Qc2 Qd7 $11 (20... Bxh4 21. f4 $11)) 19... Bxb5 {[%emt 0:01:08]} 20. fxe5 {[%emt 0:08:21]} Ba4 $2 {[%emt 0:02:32] [#]} (20... Bd7) 21. Rdf1 $1 {[%emt 0:00:13] And now Qh5 would win.} Rf8 {[%emt 0:27:12]} 22. Qh5 {[%emt 0:03:37][%cal Of1f7] aiming for Rxf7!} dxe5 {[%emt 0:05:07]} 23. Qf5 {[%emt 0:01:03]} g6 {[%emt 0:00:22]} 24. Qxe5 {[%emt 0:00:09]} Bd6 {[%emt 0:00:24]} (24... Rb7 $142 25. Nc3 (25. h5 Bg5 $18) 25... Rd7 (25... Bd6 $2 26. Qf6 $18) 26. Nxa4 Bxh4) 25. Nf6+ {[%emt 0:04:38]} Kh8 {[%emt 0:00:04] [#]} 26. Qg5 $3 {[%emt 0:00:48][%mdl 512]} Kg7 {[%emt 0:02:22]} 27. Nh5+ {[%emt 0:00:15]} Kg8 {[%emt 0:04:50]} 28. Qxh6 {[%emt 0:00:16][%csl Gh5][%cal Rh6g7]} Be5 {[%emt 0:00:12] [#]} 29. Bxg6 $1 {[%emt 0:00:42][%mdl 512]} fxg6 {[%emt 0:00:33]} 30. Qxg6+ {[%emt 0:00:08]} Kh8 {[%emt 0:00:10]} 31. Qh6+ {[%emt 0:00:21]} Kg8 {[%emt 0:00:02]} 32. Qe6+ {[%emt 0:00:26]} Kh7 {[%emt 0:00:19]} 33. Qxe5 {[%emt 0:00:15] Weighted Error Value: White=0.04 (flawless) /Black=1.03.  Mistake:       	---       	Black=6      Inaccurate:     	---       	Black=3      OK:         	White=6     	Black=7      Best:        	White=1     	Black=1      Strong:       	White=4     	---} 1-0

[Event "Singapore Open-A 2024"]
[Site "Singapore"]
[Date "2024.11.30"]
[Round "3.8"]
[White "Muthaiah AL"]
[Black "Felix, Raphael"]
[Result "1-0"]
[ECO "D30"]
[WhiteElo "2477"]
[BlackElo "2064"]
[Annotator "TA"]
[PlyCount "107"]
[EventDate "2024.11.29"]
[EventType "swiss"]
[EventCountry "SIN"]
[SourceTitle "playchess.com"]
[Source "ChessBase"]
[SourceQuality "1"]
[TimeControl "5400+30"]

{[%evp 13,107,2,16,10,22,5,39,41,37,41,43,0,0,-10,37,29,47,50,35,45,54,59,60,44,51,50,47,53,60,52,56,52,52,50,52,51,62,63,68,52,130,108,106,102,122,124,139,131,145,0,133,93,110,103,129,122,137,129,152,144,222,212,282,282,282,282,396,398,391,384,373,393,492,492,1092,1055,906,528,1215,1203,1059,927,1896,4818,4818,4810,1423,1088,823,550,532,0,29987,29988,29989,29990]} 1. Nf3 {[%emt 0:00:49]} d5 {[%emt 0:00:23]} 2. e3 {[%emt 0:00:11]} Nf6 {[%emt 0:01:25]} 3. c4 {[%emt 0:00:11]} c6 {[%emt 0:00:18]} 4. Nc3 {[%emt 0:00:14]} Nbd7 {[%emt 0:02:58]} 5. cxd5 {[%emt 0:06:24]} cxd5 {[%emt 0:00:39]} 6. d4 {[%emt 0:00:15]} e6 {[%emt 0:01:23]} 7. Bd3 {[%emt 0:01:23]} Bd6 {[%emt 0:00:22]} 8. O-O {[%emt 0:03:34]} O-O {[%emt 0:01:02]} 9. Bd2 {[%emt 0:06:15]} e5 {[%emt 0:04:26] Hoping for ...e4.} 10. Nb5 {[%emt 0:03:35] White is slightly better.} Bb8 {[%emt 0:01:32] ...e4 is the strong threat.} 11. dxe5 {[%emt 0:02:19]} Nxe5 {[%emt 0:00:30]} 12. Be2 {[%emt 0:00:15]} Ne4 {[%emt 0:12:10]} 13. Nbd4 {[%emt 0:14:54]} Nxd2 {[%emt 0:04:14]} (13... Qd6 $11) 14. Qxd2 $14 {[%emt 0:00:32]} Qd6 {[%emt 0:01:41]} 15. Nxe5 {[%emt 0:04:55]} Qxe5 {[%emt 0:00:37][%csl Gb8][%cal Re5h2]} 16. g3 {[%emt 0:00:24]} a6 {[%emt 0:04:52]} 17. Rfd1 {[%emt 0:04:02]} Rd8 {[%emt 0:06:08]} 18. Rac1 {[%emt 0:02:12]} Qe7 {[%emt 0:06:22]} 19. Bf3 {[%emt 0:07:12][%cal Be2f3,Bf3e4,Be4d5][%mdl 32]} Be5 {[%emt 0:03:01]} 20. Qd3 {[%emt 0:12:11]} Be6 {[%emt 0:04:17]} 21. Qb3 {[%emt 0:01:45]} g6 {[%emt 0:04:39]} 22. Nxe6 {[%emt 0:06:10]} fxe6 {[%emt 0:00:16]} 23. e4 {[%emt 0:00:11]} dxe4 $1 {[%emt 0:06:32]} 24. Bxe4 {[%emt 0:00:25]} Rxd1+ {[%emt 0:01:20]} 25. Rxd1 {[%emt 0:00:02]} Rb8 {[%emt 0:00:20] Black is weak on the light squares} 26. Re1 {[%emt 0:03:40][%cal Oe4g6] White is more active.} Bg7 {[%emt 0:03:11]} ({Black should try} 26... Qf6 $14) 27. Bd5 {[%emt 0:01:49]} Kh8 {[%emt 0:00:09]} 28. Rxe6 {[%emt 0:00:17]} Qc7 {[%emt 0:01:57]} 29. Kg2 {[%emt 0:07:14]} b6 {[%emt 0:01:59]} 30. Bf3 {[%emt 0:12:10]} Qf7 {[%emt 0:03:40]} 31. Bd5 {[%emt 0:00:00]} (31. Rxb6 $6 Qxb3 32. Rxb3 Rxb3 33. axb3 Bxb2 $11) 31... Qc7 $1 {[%emt 0:00:11]} 32. Rc6 {[%emt 0:00:00] Black is on the road to losing.} Qe5 {[%emt 0:00:45]} 33. Rc2 {[%emt 0:00:00][%cal Bc6c2,Bc2e2,Be2e6][%mdl 32]} (33. Rxb6 $2 Rxb6 34. Qxb6 Qxd5+ 35. Kg1 Qxa2 36. Qd8+ Qg8 $19) 33... b5 {[%emt 0:02:42]} 34. Bf3 {[%emt 0:00:00]} a5 {[%emt 0:01:26]} 35. Re2 {[%emt 0:00:00]} Qd4 {[%emt 0:00:34]} 36. h4 {[%emt 0:00:05]} a4 {[%emt 0:03:27] [#]} (36... Qc4 $16 37. Qa3 a4) 37. Qf7 $1 $40 {[%emt 0:00:22][%mdl 128] White wants a kill.} Qd8 {[%emt 0:01:43] Prevents Re8+.} 38. h5 {[%emt 0:01:20]} gxh5 {[%emt 0:00:49]} 39. Qxh5 {[%emt 0:00:10]} (39. Bxh5 Qg8 40. Qd7 Rf8 $14) 39... h6 {[%emt 0:02:35]} (39... Qf6 $142 40. Be4 Bh6) 40. Re6 {[%emt 0:01:09]} Qg8 {[%emt 0:04:54]} 41. Bd5 {[%emt 0:00:51] aiming for Rxh6+.} Qf8 {[%emt 0:01:33]} 42. Be4 {[%emt 0:00:22]} b4 {[%emt 0:01:27]} 43. b3 {[%emt 0:01:15]} ({Weaker is} 43. Qg6 Qg8 44. g4 Bf8 $16) 43... a3 {[%emt 0:00:02]} (43... axb3 $142 44. axb3 (44. Qg6 Qg8 $18) 44... Rc8) 44. Qg6 {[%emt 0:00:45]} Qg8 {[%emt 0:00:01] Against Qh7+} 45. Bf5 {[%emt 0:00:37]} Bf8 {[%emt 0:01:32]} 46. Qh5 {[%emt 0:00:28] White threatens Rxh6+ and mate.} Qg5 {[%emt 0:00:35]} 47. Qf3 {[%emt 0:00:19] Threatens to win with Rg6.} Bg7 {[%emt 0:00:44]} 48. Bd3 {[%emt 0:00:19] Qe4 would kill now.} Qd8 {[%emt 0:03:14]} 49. Qe4 {[%emt 0:00:31]} Qg8 {[%emt 0:00:02] Inhibits Qh7+.} 50. Bc4 {[%emt 0:00:41]} Qf8 {[%emt 0:01:00]} 51. Re7 {[%emt 0:00:19]} Rd8 {[%emt 0:00:56]} 52. Re6 $2 {[%emt 0:00:20]} (52. Ba6 $18) 52... Bd4 $2 {[%emt 0:00:42][%mdl 8192] [#]} (52... Rb8 $11 53. Bd3 Qg8) 53. Bd3 {[%emt 0:00:54][%csl Gd3][%cal Re4h7]} Qg7 {[%emt 0:01:35]} 54. Re7 {[%emt 0:00:29] Weighted Error Value: White=0.43/Black=0.29 (precise) .  Loses game:     	---       	Black=1      Mistake:       	---       	Black=5      Inaccurate:     	White=2     	Black=2      OK:         	White=14    	Black=12     Best:        	White=3     	Black=1      Strong:       	White=1     	Black=2} 1-0

[Event "Singapore Open-A 2024"]
[Site "Singapore"]
[Date "2024.11.30"]
[Round "3.9"]
[White "Zhao, Zong-Yuan"]
[Black "Deboushnik De"]
[Result "1-0"]
[ECO "A29"]
[WhiteElo "2452"]
[BlackElo "1928"]
[Annotator "TA"]
[PlyCount "89"]
[EventDate "2024.11.29"]
[EventType "swiss"]
[EventCountry "SIN"]
[SourceTitle "playchess.com"]
[Source "ChessBase"]
[SourceQuality "1"]
[TimeControl "5400+30"]

{[%evp 20,89,18,0,37,24,46,-2,19,25,26,16,28,30,39,38,42,31,85,75,94,58,52,73,104,92,114,119,130,78,84,80,77,77,84,75,85,83,84,90,91,88,87,64,87,58,80,74,104,35,136,145,242,243,295,287,295,112,127,133,142,164,170,168,1307,1263,1365,1294,1379,1355,1393,1364]} 1. c4 {[%emt 0:02:43]} e5 {[%emt 0:00:10]} 2. g3 {[%emt 0:00:05]} Nf6 {[%emt 0:00:13]} 3. Bg2 {[%emt 0:00:04]} d5 {[%emt 0:00:13]} 4. cxd5 {[%emt 0:00:06]} Nxd5 {[%emt 0:00:04]} 5. Nc3 {[%emt 0:00:05]} Nb6 {[%emt 0:00:02]} 6. Nf3 {[%emt 0:00:24]} Nc6 {[%emt 0:00:06]} 7. O-O {[%emt 0:00:42]} Be7 {[%emt 0:00:20]} 8. d3 {[%emt 0:01:52]} O-O {[%emt 0:00:05]} 9. a3 {[%emt 0:00:15]} Re8 {[%emt 0:03:31]} 10. b4 {[%emt 0:01:12]} Bf8 {[%emt 1:30:46]} 11. Bb2 {[%emt 0:03:21]} a6 {[%emt 0:00:00]} 12. Rc1 {[%emt 0:01:02]} Nd4 {[%emt 0:00:00]} 13. Nd2 {[%emt 0:01:27]} (13. Nxd4 $14 {feels stronger.} exd4 14. Ne4) 13... c6 {[%emt 0:00:00] The position is equal.} 14. e3 {[%emt 0:01:52]} Nb5 {[%emt 0:00:00]} 15. Nb3 {[%emt 0:06:04]} Nxc3 {[%emt 0:00:00]} 16. Bxc3 {[%emt 0:00:06]} f6 {[%emt 0:00:00]} 17. Nc5 {[%emt 0:08:19]} Nd5 {[%emt 0:00:00][%cal Bb6d5,Bd5c7,Bc7b5,Bb5d6,Bd6f7][%mdl 32]} 18. Bb2 {[%emt 0:01:29]} b6 {[%emt 0:00:00]} (18... Nc7 $14) 19. Nb3 {[%emt 0:04:29]} Bb7 {[%emt 0:00:00]} 20. e4 {[%emt 0:00:40]} Nc7 {[%emt 0:05:00]} 21. d4 {[%emt 0:07:47]} Nb5 {[%emt 0:00:00]} 22. dxe5 {[%emt 0:02:49]} fxe5 {[%emt 0:00:00]} 23. Qc2 {[%emt 0:02:05]} Qe7 {[%emt 0:01:30]} 24. Rfd1 {[%emt 0:10:01]} (24. a4 $142) 24... Rad8 $16 {[%emt 0:00:00]} 25. a4 {[%emt 0:03:46][%cal Ba3a4,Ba4a5][%mdl 32]} Nd6 {[%emt 0:00:00]} 26. a5 {[%emt 0:01:38]} b5 {[%emt 0:00:00]} 27. Bf1 {[%emt 0:00:36] Wards off Nc4} Nf7 {[%emt 0:00:00]} 28. Nc5 {[%emt 0:02:16]} Rxd1 {[%emt 0:00:00]} 29. Rxd1 {[%emt 0:02:01]} Bc8 {[%emt 0:00:00] Prevents Rd7.} 30. h4 {[%emt 0:07:50] Against Ng5. White is much more active.} Qf6 {[%emt 0:00:00]} 31. Bc1 {[%emt 0:01:03]} h6 {[%emt 0:04:00]} 32. Be3 {[%emt 0:01:33]} g5 {[%emt 0:00:00]} 33. hxg5 {[%emt 0:06:54]} hxg5 {[%emt 0:00:00]} 34. Be2 {[%emt 0:00:44]} (34. Nd7 $16 Qh6 35. Nxf8 Kxf8 36. Rc1) 34... Bxc5 {[%emt 0:00:00]} ({Black should play} 34... Qh6 $14) 35. Qxc5 {[%emt 0:00:41]} ({But not} 35. Bxc5 $6 Qh6 $14) 35... Qh6 {[%emt 0:00:00]} (35... Kg7 $16) 36. Rc1 $1 $18 {[%emt 0:01:44]} Bd7 {[%emt 0:00:00] [#]} 37. Qa7 $1 {[%emt 0:01:23][%csl LRa6,LRd7]} Be6 {[%emt 0:00:33]} 38. Rxc6 $2 {[%emt 0:02:11]} (38. Qxa6 $18 Kg7 39. Qxc6) 38... Kg7 $16 {[%emt 0:00:01]} 39. Qxa6 {[%emt 0:08:58]} Rh8 {[%emt 0:00:21]} 40. Bf3 {[%emt 0:00:10] Prevents Qh1+.} (40. Rxe6 $2 Qh1#) 40... Qh2+ {[%emt 0:00:42]} 41. Kf1 {[%emt 0:00:00]} Bh3+ {[%emt 0:01:56] [#]} (41... Qh3+ 42. Ke1 g4 43. Rxe6 gxf3 44. Rg6+ Kh7) 42. Ke2 $1 $18 {[%emt 0:00:01] White wants to mate with Rg6+. White is clearly winning.} Qg1 {[%emt 0:00:53]} 43. Rc1 {[%emt 0:03:19]} (43. Qxb5 $2 {loses.} Bf1+ (43... Qf1+ $2 44. Kd2 $19) 44. Kd2 Bxb5 $19) 43... Qh2 {[%emt 0:00:55]} 44. Rh1 {[%emt 0:00:51]} Bc8 {[%emt 0:00:04]} 45. Qc6 {[%emt 0:01:31] Weighted Error Value: White=0.21 (precise) /Black=0.22 (precise) .  Missed win:     	White=1     	---        Mistake:       	White=3     	Black=4      Inaccurate:     	White=2     	Black=2      OK:         	White=11    	Black=8      Best:        	---       	Black=3      Strong:       	White=3     	---} 1-0

[Event "Singapore Open-A 2024"]
[Site "Singapore"]
[Date "2024.11.30"]
[Round "3.10"]
[White "Poh, Yu Tian"]
[Black "Vivaan Vijay Saraogi"]
[Result "1-0"]
[ECO "B90"]
[WhiteElo "2444"]
[BlackElo "1899"]
[Annotator "TA"]
[PlyCount "51"]
[EventDate "2024.11.29"]
[EventType "swiss"]
[EventCountry "SIN"]
[SourceTitle "playchess.com"]
[Source "ChessBase"]
[SourceQuality "1"]
[TimeControl "5400+30"]

{[%evp 10,51,25,6,23,31,22,14,36,21,31,23,33,-5,21,-12,24,0,219,214,233,228,240,193,382,197,194,189,191,197,344,326,320,324,291,16,17,26,6,0,72,24,62,-56]} 1. e4 {[%emt 0:00:11]} c5 {[%emt 0:00:21]} 2. Nf3 {[%emt 0:00:12]} d6 {[%emt 0:00:24]} 3. d4 {[%emt 0:00:22]} cxd4 {[%emt 0:00:21]} 4. Nxd4 {[%emt 0:00:28]} Nf6 {[%emt 0:00:16]} 5. Nc3 {[%emt 0:00:15]} a6 {[%emt 0:00:31]} 6. Nb3 {[%emt 0:00:17]} e6 {[%emt 0:05:31]} 7. g4 {[%emt 0:00:07]} Nc6 {[%emt 0:08:55]} 8. Bg2 {[%emt 0:02:13]} Qc7 {[%emt 0:05:39]} 9. f4 {[%emt 0:04:44]} Be7 {[%emt 0:14:27][%cal Od6d5]} 10. Be3 {[%emt 0:04:28]} b5 {[%emt 0:28:50][%cal Bb7b5,Bb5b4][%mdl 32]} 11. Qe2 {[%emt 0:03:14]} Nd7 {[%emt 0:01:34]} 12. O-O {[%emt 0:05:13]} Bb7 {[%emt 0:06:23]} 13. Qf2 {[%emt 0:03:33]} O-O-O $2 {[%emt 0:07:25]} (13... g5 $11 {and Black stays safe.}) 14. a4 $1 $18 {[%emt 0:02:31]} b4 {[%emt 0:00:21] [#]} 15. Nb5 $1 {[%emt 0:01:04][%mdl 512]} Qb8 {[%emt 0:03:24][%cal Og7g5]} 16. c3 {[%emt 0:08:38]} Nc5 $2 {[%emt 0:02:38]} (16... bxc3 17. Na7+ (17. Nxc3 Nc5 $16) 17... Nxa7) 17. Nxc5 {[%emt 0:01:33]} (17. Nxd6+ $142 Bxd6 18. Bxc5 (18. Nxc5 Bxc5 19. Bxc5 bxc3 $18)) 17... dxc5 {[%emt 0:00:04]} 18. Bxc5 {[%emt 0:00:14]} axb5 {[%emt 0:03:43]} 19. axb5 {[%emt 0:00:25]} Rd2 {[%emt 0:08:26]} (19... Bxc5 $142 20. Qxc5 Qd6 21. cxb4 (21. Qxd6 Rxd6 22. e5 Nxe5 $16) 21... Qd4+ 22. Kh1 Qxc5 (22... Qxb4 23. Rac1 $16) 23. bxc5 Nd4) 20. Qxd2 {[%emt 0:00:10]} Bxc5+ {[%emt 0:00:03]} 21. Kh1 {[%emt 0:00:08]} Rd8 {[%emt 0:00:36] [#]} 22. Qe2 $2 {[%emt 0:00:16]} ({White must play} 22. Qc1 $1 $18 {And now cxb4 would win.} b3 23. bxc6 Bxc6 24. Qe1) 22... Ne7 $11 {[%emt 0:01:07]} 23. cxb4 {[%emt 0:00:15]} Bb6 {[%emt 0:00:16]} 24. g5 {[%emt 0:04:25]} Rd7 {[%emt 0:00:43]} (24... Qd6 $11) 25. Qh5 {[%emt 0:00:40]} (25. Rac1+ $16 Kd8 26. Qh5) 25... Ng6 {[%emt 0:00:31]} 26. Qxh7 {[%emt 0:00:21]} ({Better is} 26. Rac1+ $14 Kd8 27. Qxh7) 1-0